Cogmind - Beta 13 @@@ ROGUE MODE // 2024.04.05 @ 17:44:39 Player: Demo Result: Destroyed by P-70 Sage with Tesla Rifle Performance ------------- Evolutions (5) 2500 Regions Visited (13) 2600 Robots Destroyed (45) 225 Value Destroyed (1842) 1842 Prototype IDs (9) 180 Alien Tech Used (0) 0 Bonus (3337) 3337 TOTAL SCORE: 10684 Bonus ------- High Alert Combat Kills 70 Follower Combat Kills 1703 Entered DSFs 500 Built Enhanced Grunts 300 A7 Reached Mainframe 300 Met R17 at Cetus 500 Friendly Fire -36 Cogmind --------- Core Integrity 0/1000 Matter 96/300 Energy 100/100 System Corruption 22% Temperature Cool (0) Movement Core (50) Location -5/Factory Parts ------- > --- POWER (1) -------- (None) > --- PROPULSION (6) --- (None) > --- UTILITY (6) ------ Improved Signal Interpreter Armor Integrity Analyzer > --- WEAPON (4) ------- (None) > --- INVENTORY (5) ---- (None) Peak State ------------ > --- POWER ------------ Antimatter Reactor > --- PROPULSION ------- Light Treads Light Treads Armored Treads Improved Medium Treads Centrium Heavy Treads > --- UTILITY ---------- Advanced Heat Sink Huge Storage Unit Armor Integrity Analyzer Centrium Medium Armor Plating Thermal Shield Force Field > --- WEAPON ----------- Heavy Laser Neutron Cannon Advanced KE Penetrator Magnetic Acceleration Cannon > --- INVENTORY -------- Neutrino Core Antimatter Reactor Centrium Heavy Treads Centrium Heavy Treads Centrium Heavy Treads Advanced Heat Sink Advanced Heat Sink Advanced Energy Well Weapon Shielding Weapon Shielding Improved Light Armor Plating Centrium Medium Armor Plating Force Field Cooled Plasma Cannon Cooled Plasma Cannon Advanced Plasma Cannon Bore Cannon Bore Cannon Plasma Cutter Phasing Sabre Heavy Pick [Rating: 102] Favorites ----------- Power Light Fission Core Engine Light Ion Engine Power Core Light Fission Core Reactor Antimatter Reactor Propulsion Advanced Treads Treads Advanced Treads Leg Armored Leg Hover Unit Improved Gravmag System Flight Unit Xenon Bombardment Thruster Utility Huge Storage Unit Device Advanced Heat Sink Storage Huge Storage Unit Processor Improved Targeting Computer Protection Weapon Shielding Weapon Magnetic Acceleration Cannon Energy Gun Arc Projector Energy Cannon Neutron Cannon Ballistic Gun Gauss Rifle Ballistic Cannon Magnetic Acceleration Cannon Launcher Missile Launcher Special Weapon Plasma Cutter Build | -11 -10 -9 -8 -7 -7 -6 -6 -6 -6 -6 -5 -5 -5 ------- Run | Yrd Mat Mat Mat Fac DSF Fac Ext Cet Arc Hub Fac Was Fac Slots Evolved 10 | . . 2 2 2 . 2 . . . . 2 . . Power . | . . . . . . . . . . . . . . Propulsion 4 | . . 2 . . . 2 . . . . . . . Utility 4 | . . . 2 . . . . . . . 2 . . Weapon 2 | . . . . 2 . . . . . . . . . Parts Attached 102 | 6 . 4 3 . 13 13 16 12 5 10 1 3 16 Power 8 | . . 2 . . . 1 1 1 . . . . 3 Engine 3 | . . 2 . . . 1 . . . . . . . Core 3 | . . . . . . . 1 . . . . . 2 Reactor 2 | . . . . . . . . 1 . . . . 1 Propulsion 33 | 2 . . . . 8 4 2 5 2 3 . . 7 Treads 19 | 2 . . . . 3 3 . 5 1 3 . . 2 Leg 8 | . . . . . 4 1 2 . 1 . . . . Wheel . | . . . . . . . . . . . . . . Hover 1 | . . . . . 1 . . . . . . . . Flight 5 | . . . . . . . . . . . . . 5 Utility 25 | 2 . 1 1 . 1 4 4 2 2 1 1 1 5 Device 10 | 2 . . . . . . 2 1 . 1 1 . 3 Storage 2 | . . . . . . 1 . . 1 . . . . Processor 5 | . . 1 . . . . 2 . . . . 1 1 Hackware . | . . . . . . . . . . . . . . Protection 8 | . . . 1 . 1 3 . 1 1 . . . 1 Artifact . | . . . . . . . . . . . . . . Weapon 36 | 2 . 1 2 . 4 4 9 4 1 6 . 2 1 Energy Gun 11 | 2 . 1 2 . . 3 . 2 . 1 . . . Energy Cannon 4 | . . . . . . 1 . . 1 2 . . . Ballistic Gun 10 | . . . . . . . 3 2 . 3 . 2 . Ballistic Cannon 5 | . . . . . . . 4 . . . . . 1 Launcher 4 | . . . . . 4 . . . . . . . . Special Weapon 2 | . . . . . . . 2 . . . . . . Impact Weapon . | . . . . . . . . . . . . . . Slashing Weapon . | . . . . . . . . . . . . . . Piercing Weapon . | . . . . . . . . . . . . . . Special Melee Weapon . | . . . . . . . . . . . . . . Unidentified Prototypes 9 | . . . . . . . . 4 3 1 . . 1 Corrupted Parts 3 | . . . . . . . . 3 . . . . . System Corruption 13 | . . . . . . . . 13 . . . . . Parts Lost 38 | . . 5 2 . 4 . 1 3 . 4 . 7 12 Power 2 | . . . . . . . . . . . . . 2 Propulsion 14 | . . 1 1 . . . 1 2 . 1 . 3 5 Utility 10 | . . 2 . . . . . . . 1 . 3 4 Weapon 12 | . . 2 1 . 4 . . 1 . 2 . 1 1 Highest Loss Streak 12 | . . 3 2 . 4 . 1 2 . 2 . 7 12 To Critical Strikes 3 | . . . . . . . . 1 . 1 . 1 . Average Slot Usage (%) 81 | . 57 39 5 4 13 84 99 98 93 92 86 52 44 Core 2 | . . . . . . . 5 5 . . . . 3 Reactor 1 | . . . . . . . . . 6 6 5 2 . Treads 23 | . 28 19 4 . . 25 26 26 32 32 29 17 4 Leg 6 | . . . . . 7 12 12 11 . . . . . Flight 1 | . . . . . . . . . . . . . 12 Device 6 | . 14 9 . . . . 3 6 6 9 15 9 7 Storage 4 | . . . . . . 5 6 6 6 6 5 2 . Processor 4 | . . 3 . . . . 5 7 6 2 . 3 6 Protection 6 | . . . . 4 . 17 9 5 6 6 5 2 3 Energy Gun 5 | . 14 5 1 . . 16 8 10 . . 5 2 . Energy Cannon 1 | . . . . . . 4 . . 5 . 5 2 . Ballistic Gun 8 | . . . . . . . 10 8 14 19 5 2 . Ballistic Cannon 4 | . . . . . . . 5 6 6 6 5 2 2 Naked Turns 137 | . . . 84 7 46 . . . . . . . . Heaviest Build 140 | 5 3 6 8 8 26 108 114 127 131 140 139 139 33 Greatest Support 172 | 3 3 40 3 3 3 86 86 165 165 172 170 170 80 Greatest Overweight (x) 8 | 1 . . 2 2 8 1 1 1 . . . . . Average Overweight (x) . | . . . . . . . 1 . . . . . . Largest Inventory Capacity 25 | 5 5 5 5 5 5 25 25 25 25 25 25 25 5 Average Capacity 20 | 5 5 5 5 5 5 23 25 25 25 25 25 15 5 Most Carried 25 | . 2 2 4 4 5 10 25 25 25 25 24 25 5 Average Carried 17 | . 1 1 2 3 2 5 22 24 24 24 23 14 3 Final Capacity 25 | 5 5 5 5 5 5 25 25 25 25 25 25 5 5 Final Carried 25 | . 2 1 3 4 5 10 25 25 25 23 23 5 . Class Distribution -------------------- 53% | Scavenger-Gunner 22% | Mutant 14% | Scavenger-Tank 10% | Tank Dominant Class ---------------- Mutant | -10/Materials Mutant | -9/Materials Mutant | -8/Materials Mutant | -7/Factory Mutant | -7/DSF Tank | -6/Factory Scavenger-Gunner | -6/Extension Scavenger-Gunner | -6/Cetus Scavenger-Gunner | -6/Archives Scavenger-Tank | -6/Hub_04(d) Scavenger-Tank | -5/Factory Scavenger-Tank | -5/Waste Mutant | -5/Factory Resources | -11 -10 -9 -8 -7 -7 -6 -6 -6 -6 -6 -5 -5 -5 ----------- Run | Yrd Mat Mat Mat Fac DSF Fac Ext Cet Arc Hub Fac Was Fac Matter Collected 2287 | 99 . 51 10 . 102 . 707 412 207 330 . 236 133 Remotely . | . . . . . . . . . . . . . . Salvage Created 2060 | 126 . 88 . . 9 29 541 365 121 636 . . 145 Parts 109 | 13 . 2 . . 4 2 20 16 5 43 . . 4 Haulers Intercepted . | . . . . . . . . . . . . . . Recyclers Shooed 1 | 1 . . . . . . . . . . . . . Parts Field Recycled . | . . . . . . . . . . . . . . Retrieved Matter . | . . . . . . . . . . . . . . Parts Self-Destructed . | . . . . . . . . . . . . . . Prevented . | . . . . . . . . . . . . . . Kills | -11 -10 -9 -8 -7 -7 -6 -6 -6 -6 -6 -5 -5 -5 ------- Run | Yrd Mat Mat Mat Fac DSF Fac Ext Cet Arc Hub Fac Was Fac Combat Hostiles Destroyed 33 | . . 3 . . 2 . 4 8 2 11 . . 3 Melee 2 | . . 1 . . . . . . . . . . 1 Guns 16 | . . 2 . . . . 1 5 1 7 . . . Cannons 13 | . . . . . . . 3 3 1 4 . . 2 AOE 2 | . . . . . 2 . . . . . . . . Classes Destroyed 13 | 2 . 2 . . 1 1 1 1 . 5 . . . Worker 2 | . . . . . . . . . . 2 . . . Builder 1 | . . . . . . 1 . . . . . . . Tunneler 4 | 3 . . . . . . . . . 1 . . . Recycler 3 | 1 . . . . . . 2 . . . . . . Operator 1 | . . . . . . . . . . 1 . . . Watcher 1 | . . . . . . . . . . 1 . . . Swarmer 3 | . . . . . . . . 3 . . . . . Cutter 2 | . . . . . 2 . . . . . . . . Grunt 13 | . . 2 . . . . 1 3 . 5 . . 2 Brawler 1 | . . . . . . . . . . 1 . . . Sentry 6 | . . 1 . . . . 1 . 2 2 . . . Hunter 4 | . . . . . . . 1 1 . 1 . . 1 Programmer 2 | . . . . . . . . . . 2 . . . Cetus Guard 1 | . . . . . . . . 1 . . . . . Thug 1 | . . . . . . . 1 . . . . . . Best Kill Streak 6 | 4 . 3 . . 2 1 2 2 1 6 . . 3 Combat Bots Only 4 | . . 3 . . 2 . 2 2 1 4 . . 3 Max Kills in Single Turn 2 | 1 . 1 . . 1 1 1 1 1 2 . . 1 Gunslinging . | . . . . . . . . . . . . . . Exploded 1 | . . . . . 1 . . . . . . . . Melee 1 | . . 1 . . . . . . . . . . 1 Uniques/NPCs Destroyed 1 | . . . . . . . . 1 . . . . . A7 (-6/Cetus) Combat | -11 -10 -9 -8 -7 -7 -6 -6 -6 -6 -6 -5 -5 -5 -------- Run | Yrd Mat Mat Mat Fac DSF Fac Ext Cet Arc Hub Fac Was Fac Hostile Shots Fired 649 | . 3 36 65 . 49 1 145 40 10 124 . 14 162 Missed 204 | . 2 9 28 . 19 1 60 10 2 41 . . 32 Damage Taken 7579 | . 11 487 572 . 997 . 877 498 184 848 . 595 2510 Core 1992 | . 11 49 465 . 336 . 81 28 . 19 . 130 873 Absorbed by Shields 543 | . . . . . . . 18 235 . 200 . 29 61 Redirected to Shielding 47 | . . . . . . . 47 . . . . . . Core Remaining (%) 72 | 100 95 87 15 . 52 . . . . 84 . . . Volleys Fired 139 | 8 . 7 4 . 4 1 28 29 8 25 . 10 15 Largest 4 | 2 . 2 2 . 3 4 4 4 4 4 . 4 1 Hottest 315 | 90 . 90 80 . 108 283 283 315 144 151 . 247 48 Shots Fired 422 | 16 . 14 7 . 6 4 100 105 28 96 . 32 14 Gun 296 | 16 . 14 7 . . 3 72 78 20 70 . 16 . Cannon 120 | . . . . . . 1 28 27 8 26 . 16 14 Launcher 6 | . . . . . 6 . . . . . . . . Special . | . . . . . . . . . . . . . . Kinetic 280 | . . . . . . . 62 66 28 96 . 14 14 Thermal 94 | 16 . 14 . . . 3 10 33 . . . 18 . Explosive 6 | . . . . . 6 . . . . . . . . Electromagnetic 42 | . . . 7 . . 1 28 6 . . . . . Robot Hit Streak 19 | 6 . 10 15 . 16 2 13 14 6 19 . 4 7 Robot Miss Streak 4 | 1 . 1 . . 3 . 4 4 3 3 . 4 2 Penetration Max 1 | . . . . . . . 1 1 . 1 . . . Secondary Targets . | . . . . . . . . . . . . . . Shots Hit Robots 286 | 12 . 12 7 . 2 1 72 63 19 67 . 21 10 Core Hits 109 | 5 . 5 4 . 5 1 22 27 5 24 . 4 7 Critical Kills 3 | . . . . . . . . . . 3 . . . Critical Parts Destroyed 8 | . . . . . . . 2 . . 6 . . . Critical Strikes 18 | 1 . 1 . . . . 3 2 . 10 . 1 . Burn 3 | 1 . 1 . . . . . 1 . . . . . Destroy 13 | . . . . . . . 3 . . 9 . 1 . Blast 2 | . . . . . . . . 1 . 1 . . . Melee Attacks . | . . . . . . . . . . . . . . Impact . | . . . . . . . . . . . . . . Slashing . | . . . . . . . . . . . . . . Piercing . | . . . . . . . . . . . . . . Sneak Attacks . | . . . . . . . . . . . . . . Combat Hostiles . | . . . . . . . . . . . . . . Follow-up Attacks . | . . . . . . . . . . . . . . Damage Inflicted 6829 | 141 . 172 132 . 156 10 1456 1649 440 1702 . 645 326 Guns 3979 | 141 . 141 85 . . 10 857 965 261 1239 . 280 . Cannons 2347 | . . . . . . . 599 470 179 438 . 365 296 Explosions 370 | . . . . . 156 . . 214 . . . . . Melee . | . . . . . . . . . . . . . . Ramming 133 | . . 31 47 . . . . . . 25 . . 30 Kinetic 4752 | . . . . . . . 1077 919 440 1677 . 343 296 Thermal 1399 | 141 . 141 . . . . 146 669 . . . 302 . Explosive 156 | . . . . . 156 . . . . . . . . Electromagnetic 389 | . . . 85 . . 10 233 61 . . . . . Impact . | . . . . . . . . . . . . . . Slashing . | . . . . . . . . . . . . . . Piercing . | . . . . . . . . . . . . . . Highest Corruption 25 | . . 4 1 . . . . 13 13 25 . 18 22 Average Corruption 15 | . . 4 1 . . . . 1 13 20 . 11 18 Corruption Purged . | . . . . . . . . . . . . . . Corruption Blocked . | . . . . . . . . . . . . . . Effects 66 | . . 1 . . . . . . 16 25 . 5 19 Message Errors 12 | . . . . . . . . . 3 4 . . 5 Matter Fused 22 | . . . . . . . . . 7 7 . 4 4 Heat Flow Errors 6 | . . . . . . . . . 2 3 . . 1 Energy Discharges 8 | . . . . . . . . . 2 3 . . 3 Parts Fused 1 | . . . . . . . . . . 1 . . . Data Loss (minor) 5 | . . . . . . . . . . 3 . 1 1 Data Loss (major) 2 | . . 1 . . . . . . . . . . 1 Misfires 1 | . . . . . . . . . . 1 . . . Alerts 2 | . . . . . . . . . 1 . . . 1 Misdirections 3 | . . . . . . . . . . 1 . . 2 Weapon Failures 4 | . . . . . . . . . 1 2 . . 1 Overload Shots 1 | . . . . . . . . 1 . . . . . Overflow Damage 47 | . . . . . 23 . 1 . . 23 . . . Projectiles 24 | . . . . . . . 1 . . 23 . . . Explosions 23 | . . . . . 23 . . . . . . . . Melee . | . . . . . . . . . . . . . . Knockbacks 14 | . . 1 . . . . 2 4 . 2 . . 5 Impact 1 | . . 1 . . . . . . . . . . . Kinetic 12 | . . . . . . . 2 4 . 2 . . 4 Secondary 1 | . . . . . . . . . . . . . 1 Self-Inflicted Damage 128 | . . 10 21 . 97 . . . . . . . . Shots 3 | . . . . . 3 . . . . . . . . Rammed 35 | . . 12 8 . 1 . . . . 1 . . 13 Targets Rammed 37 | . . 13 8 . 1 . . . . 1 . . 14 Kicked . | . . . . . . . . . . . . . . Crushed 2 | . . 1 . . . . . . . . . . 1 Highest Temperature 418 | 85 . 130 4 . . 171 356 395 178 210 . 396 418 Average Temperature 91 | 35 . 72 4 . . 96 100 115 29 44 . 182 75 Received Heat Transfer 1421 | . 6 135 90 . 90 . 178 140 9 168 . . 605 Effects 2 | . . . . . . . . 2 . . . . . Shutdowns 1 | . . . . . . . . 1 . . . . . Damage (minor) 1 | . . . . . . . . 1 . . . . . Siege Activations 1 | . . . . . . . . . . . . 1 . Total Turns 4 | . . . . . . . . . . . . 4 . Longest Duration 4 | . . . . . . . . . . . . 4 . Robots Corrupted . | . . . . . . . . . . . . . . Combat Hostiles . | . . . . . . . . . . . . . . Parts Fried 3 | . . . . . . . 1 2 . . . . . Impact Corruptions . | . . . . . . . . . . . . . . Robots Melted . | . . . . . . . . . . . . . . Combat Hostiles . | . . . . . . . . . . . . . . Parts Melted 7 | 1 . 5 . . . . . 1 . . . . . Heat Transferred 2289 | 446 . 446 . . . . 272 903 . . . 222 . Parts Sabotaged . | . . . . . . . . . . . . . . Parts Stolen . | . . . . . . . . . . . . . . Parts Stripped . | . . . . . . . . . . . . . . Power Chain Reactions 1 | . . . . . . . . 1 . . . . . Alert | -11 -10 -9 -8 -7 -7 -6 -6 -6 -6 -6 -5 -5 -5 ------- Run | Yrd Mat Mat Mat Fac DSF Fac Ext Cet Arc Hub Fac Was Fac Peak Influence 658 | 20 101 132 243 109 139 88 273 658 321 490 88 42 135 Initial 219 | . 13 42 8 109 76 70 42 49 219 112 88 30 . Average 176 | 6 55 45 97 109 114 76 148 351 305 239 88 15 21 Maximum Alert Level 2 | . . . 1 . . . 1 2 1 2 . . . Low Security (%) 62 | 100 100 100 83 100 100 100 75 12 . 43 100 100 100 Level 1 30 | . . . 16 . . . 24 52 100 53 . . . Level 2 6 | . . . . . . . . 34 . 3 . . . Level 3 . | . . . . . . . . . . . . . . Level 4 . | . . . . . . . . . . . . . . Level 5 . | . . . . . . . . . . . . . . High Security . | . . . . . . . . . . . . . . Max Security . | . . . . . . . . . . . . . . Squads Dispatched 19 | . 2 3 1 . 3 . 2 1 . 5 . . 2 Investigation 5 | . 1 1 1 . . . 1 1 . . . . . Extermination 3 | . . . . . . . . . . 2 . . 1 Reinforcement 10 | . 1 2 . . 3 . 1 . . 2 . . 1 Assault 1 | . . . . . . . . . . 1 . . . Garrison . | . . . . . . . . . . . . . . Intercept . | . . . . . . . . . . . . . . Searches Triggered . | . . . . . . . . . . . . . . Construction Impeded . | . . . . . . . . . . . . . . Haulers Reinforced . | . . . . . . . . . . . . . . Active Scanning Responses . | . . . . . . . . . . . . . . Cargo Convoy Interrupts . | . . . . . . . . . . . . . . Stealth | -11 -10 -9 -8 -7 -7 -6 -6 -6 -6 -6 -5 -5 -5 --------- Run | Yrd Mat Mat Mat Fac DSF Fac Ext Cet Arc Hub Fac Was Fac Distress Signals 11 | . 1 2 3 . . . 2 2 . 1 . . . Communications Jammed . | . . . . . . . . . . . . . . Distress Signals . | . . . . . . . . . . . . . . Times Spotted 160 | . 9 12 18 . 13 1 20 33 3 25 . 6 20 Peak Tracking Total 14 | . 6 5 12 . 9 1 3 5 1 8 . 5 14 Tactical Retreats 11 | . 1 2 5 . 1 . . . . . . . 2 Traps | -11 -10 -9 -8 -7 -7 -6 -6 -6 -6 -6 -5 -5 -5 ------- Run | Yrd Mat Mat Mat Fac DSF Fac Ext Cet Arc Hub Fac Was Fac Traps Triggered 8 | . . . 1 . 1 . 1 . . 4 1 . . Indirectly . | . . . . . . . . . . . . . . Trap Hack Attempts . | . . . . . . . . . . . . . . Triggered . | . . . . . . . . . . . . . . Disarmed . | . . . . . . . . . . . . . . Reprogrammed . | . . . . . . . . . . . . . . Reused . | . . . . . . . . . . . . . . Traps Extracted . | . . . . . . . . . . . . . . Installed . | . . . . . . . . . . . . . . Triggered . | . . . . . . . . . . . . . . Machines | -11 -10 -9 -8 -7 -7 -6 -6 -6 -6 -6 -5 -5 -5 ---------- Run | Yrd Mat Mat Mat Fac DSF Fac Ext Cet Arc Hub Fac Was Fac Machines Disabled 5 | . . . . . . . 1 2 2 . . . . Max in Single Turn 1 | . . . . . . . . 1 1 . . . . Garrison Access 1 | . . . . . . . . . . 1 . . . Machines Repaired . | . . . . . . . . . . . . . . Machines Dismantled 2 | . . . . . . . 2 . . . . . . Machines Sabotaged . | . . . . . . . . . . . . . . Overloaded Fab Kills . | . . . . . . . . . . . . . . Hacking | -11 -10 -9 -8 -7 -7 -6 -6 -6 -6 -6 -5 -5 -5 --------- Run | Yrd Mat Mat Mat Fac DSF Fac Ext Cet Arc Hub Fac Was Fac Machines Accessed 30 | . 2 1 4 1 . 3 7 3 1 5 1 . 2 Terminals 28 | . 2 1 4 1 . 2 7 3 . 5 1 . 2 Fabricators . | . . . . . . . . . . . . . . Repair Stations . | . . . . . . . . . . . . . . Recycling Units . | . . . . . . . . . . . . . . Scanalyzers 1 | . . . . . . 1 . . . . . . . Garrison Access . | . . . . . . . . . . . . . . Total Hacks 90 | . 5 6 12 2 . 5 11 9 25 11 1 . 3 Successful 46 | . 2 3 3 1 . 3 3 2 25 3 . . 1 Failed 44 | . 3 3 9 1 . 2 8 7 . 8 1 . 2 Catastrophic 12 | . 1 . 3 . . . 3 3 . 2 . . . Database Lockouts . | . . . . . . . . . . . . . . Manual 23 | . 2 3 11 . . 1 2 2 1 1 . . . Terminals 62 | . 5 6 12 2 . 2 11 9 . 11 1 . 3 Fabricators . | . . . . . . . . . . . . . . Repair Stations . | . . . . . . . . . . . . . . Recycling Units . | . . . . . . . . . . . . . . Scanalyzers 3 | . . . . . . 3 . . . . . . . Garrison Access . | . . . . . . . . . . . . . . Terminal Hacks 44 | . 2 3 3 1 . 1 3 2 25 3 . . 1 Record 27 | . . . . . . . . 1 25 1 . . . Robot Analysis 2 | . 1 1 . . . . . . . . . . . Open Door 3 | . . . . . . . 2 1 . . . . . Open DSF 2 | . . . . 1 . 1 . . . . . . . Level Access Points 1 | . . . 1 . . . . . . . . . . Branch Access Points 1 | . 1 . . . . . . . . . . . . Terminal Index 1 | . . . 1 . . . . . . . . . . Alert Level 3 | . . . . . . . 1 . . 1 . . 1 Unreport Threat 2 | . . 1 . . . . . . . 1 . . . Maintenance Status 1 | . . 1 . . . . . . . . . . . Zone Layout 1 | . . . 1 . . . . . . . . . . Fabricator Hacks . | . . . . . . . . . . . . . . Repair Station Hacks . | . . . . . . . . . . . . . . Recycling Unit Hacks . | . . . . . . . . . . . . . . Scanalyzer 2 | . . . . . . 2 . . . . . . . Insert Component 1 | . . . . . . 1 . . . . . . . Analyze 1 | . . . . . . 1 . . . . . . . Garrison Access Hacks . | . . . . . . . . . . . . . . Unauthorized Hacks . | . . . . . . . . . . . . . . Terminals . | . . . . . . . . . . . . . . Fabricators . | . . . . . . . . . . . . . . Repair Stations . | . . . . . . . . . . . . . . Recycling Units . | . . . . . . . . . . . . . . Scanalyzers . | . . . . . . . . . . . . . . Garrison Access . | . . . . . . . . . . . . . . Data Cores Recovered 2 | . . . . . . . 1 . . 1 . . . Used . | . . . . . . . . . . . . . . Hacking Detections 27 | . 2 1 4 1 . 2 5 4 . 5 1 . 2 Full Trace Events 5 | . 1 1 1 . . . 1 1 . . . . . Feedback Events . | . . . . . . . . . . . . . . Feedback Blocked . | . . . . . . . . . . . . . . Robot Schematics Acquired . | . . . . . . . . . . . . . . Robots Built . | . . . . . . . . . . . . . . Authchips . | . . . . . . . . . . . . . . Time . | . . . . . . . . . . . . . . Total Robot Build Rating . | . . . . . . . . . . . . . . Part Schematics Acquired 1 | . . . . . . 1 . . . . . . . Parts Built . | . . . . . . . . . . . . . . Authchips . | . . . . . . . . . . . . . . Time . | . . . . . . . . . . . . . . Total Part Build Rating . | . . . . . . . . . . . . . . Parts Repaired . | . . . . . . . . . . . . . . Time . | . . . . . . . . . . . . . . Parts Recycled . | . . . . . . . . . . . . . . Recycled Matter . | . . . . . . . . . . . . . . Retrieved Matter . | . . . . . . . . . . . . . . Retrieved Components . | . . . . . . . . . . . . . . Parts Scanalyzed 1 | . . . . . . 1 . . . . . . . Part Schematics Acquired 1 | . . . . . . 1 . . . . . . . Parts Damaged . | . . . . . . . . . . . . . . Bothacking | -11 -10 -9 -8 -7 -7 -6 -6 -6 -6 -6 -5 -5 -5 ------------ Run | Yrd Mat Mat Mat Fac DSF Fac Ext Cet Arc Hub Fac Was Fac Used RIF Installer . | . . . . . . . . . . . . . . Robots Hacked . | . . . . . . . . . . . . . . Non-combat . | . . . . . . . . . . . . . . Combat . | . . . . . . . . . . . . . . Robot Hacks Applied . | . . . . . . . . . . . . . . Relay Couplers Released 1 | . . . . . . . . . . 1 . . . Machine Destruction 1 | . . . . . . . . . . 1 . . . Fabnet Peak Effective % . | . . . . . . . . . . . . . . Robots Rewired 5 | . . . . . . . 5 . . . . . . Allies Hacked . | . . . . . . . . . . . . . . Hacks Repelled . | . . . . . . . . . . . . . . Allies | -11 -10 -9 -8 -7 -7 -6 -6 -6 -6 -6 -5 -5 -5 -------- Run | Yrd Mat Mat Mat Fac DSF Fac Ext Cet Arc Hub Fac Was Fac Total Allies 17 | . . . . . . . 11 5 . . . 1 . Largest Group 10 | . . . . . . . 10 6 4 1 . 1 . Highest-Rated Group 633 | . . . . . . . 450 633 377 96 . 31 . Highest-Rated Ally 159 | . . . . . . . 159 153 96 96 . 31 . Total Orders 2 | . . . . . . . . 1 1 . . . . GUARD 2 | . . . . . . . . 1 1 . . . . Ally Attacks 256 | . . . . . . . 135 88 16 6 . 11 . Total Damage 7518 | . . . . . . . 2560 3650 733 406 . 169 . Kills 47 | . . . . . . . 20 21 2 3 . 1 . Allies Corrupted . | . . . . . . . . . . . . . . Allies Melted . | . . . . . . . . . . . . . . Intel | -11 -10 -9 -8 -7 -7 -6 -6 -6 -6 -6 -5 -5 -5 ------- Run | Yrd Mat Mat Mat Fac DSF Fac Ext Cet Arc Hub Fac Was Fac Robot Analysis Total 2 | . 1 1 . . . . . . . . . . . Derelict Logs Recovered . | . . . . . . . . . . . . . . Drone Launches . | . . . . . . . . . . . . . . Drone Recoveries . | . . . . . . . . . . . . . . Exploration | -11 -10 -9 -8 -7 -7 -6 -6 -6 -6 -6 -5 -5 -5 ------------- Run | Yrd Mat Mat Mat Fac DSF Fac Ext Cet Arc Hub Fac Was Fac Turns Passed 4606 | 67 71 199 161 21 104 237 1316 854 317 569 147 172 371 Spaces Moved 2572 | 56 132 232 259 23 96 103 454 319 173 270 90 83 282 Core 956 | 56 132 227 259 23 96 26 . . . . . . 137 Treads 1605 | . . 5 . . . 77 454 319 173 270 90 83 134 Legs . | . . . . . . . . . . . . . . Wheels . | . . . . . . . . . . . . . . Hover . | . . . . . . . . . . . . . . Flight 11 | . . . . . . . . . . . . . 11 Fastest Speed 40 | 50 50 50 50 50 50 50 231 159 159 159 162 160 40 Average Speed 141 | 61 50 52 50 89 54 182 231 224 159 160 162 160 101 Slowest Speed 450 | 100 50 160 150 150 450 231 231 238 162 162 162 162 160 Overloaded Moves . | . . . . . . . . . . . . . . Propulsion Burnouts . | . . . . . . . . . . . . . . Robots Hopped 2 | . . . . . . . . . . . . . 2 Cave-ins Triggered . | . . . . . . . . . . . . . . Exploration Rate (%) 40 | 4 35 17 47 1 85 3 62 85 96 33 5 78 10 Regions Visited 13 Branch Regions 4 Pre-discovered Areas . | . . . . . . . . . . . . . . Known Exits Taken 4 | . . . 1 1 . . 1 . . 1 . . . Unknown Exits Taken 6 | 1 1 1 . . . 1 . 1 1 . . . . Scrap Searched . | . . . . . . . . . . . . . . Spaces Dug . | . . . . . . . . . . . . . . Terrain Destroyed 117 | . . . . . 52 . 8 16 2 28 . 7 4 Melee . | . . . . . . . . . . . . . . Projectile 50 | . . . . . . . 8 2 2 27 . 7 4 AOE 66 | . . . . . 52 . . 14 . . . . . Terrain Rammed . | . . . . . . . . . . . . . . Walls Destroyed . | . . . . . . . . . . . . . . Machines Disabled . | . . . . . . . . . . . . . . Actions | -11 -10 -9 -8 -7 -7 -6 -6 -6 -6 -6 -5 -5 -5 --------- Run | Yrd Mat Mat Mat Fac DSF Fac Ext Cet Arc Hub Fac Was Fac Total 3183 | 69 137 288 282 23 137 148 632 396 201 345 92 97 336 Wait 154 | . 3 31 5 . 1 20 40 13 2 32 . . 7 Move 2556 | 55 131 231 258 22 95 102 453 318 172 269 90 82 278 Hop 2 | . . . . . . . . . . . . . 2 Pick Up 70 | . 1 . 3 . 6 12 30 9 4 3 1 1 . Fast Attach 54 | 6 . 2 1 . 10 6 2 5 5 4 . 2 11 Attach 31 | . . 2 2 . 3 7 1 5 . 4 1 1 5 Detach 9 | . 1 1 1 1 . . 1 . 1 . . 1 2 Swap 17 | . . . . . . . 13 2 . 2 . . . Drop 55 | . 1 1 . . 2 . 20 15 9 5 . . 2 Fire 139 | 8 . 7 4 . 4 1 28 29 8 25 . 10 15 Melee . | . . . . . . . . . . . . . . Ram 12 | . . 3 8 . 1 . . . . . . . . Kick . | . . . . . . . . . . . . . . Crush 25 | . . 10 . . . . . . . 1 . . 14 Escape Stasis 19 | . . . . . 15 . 4 . . . . . . Rewire 24 | . . . . . . . 24 . . . . . . Trap . | . . . . . . . . . . . . . . Miscellaneous 16 | . . . . . . . 16 . . . . . . Route ------- -11/Scrapyard -10/Materials (discovered 2 exits: *Mat / *Min) -9/Materials -8/Materials (discovered 3 exits: *Fac x3) -7/Factory -7/DSF -6/Factory -6/Extension (discovered 2 exits: *Fac / *Cet) -6/Cetus (discovered 2 exits: *Fac / *Arc) -6/Archives (discovered 3 exits: *Fac / *Hub x2) -6/Hub_04(d) -5/Factory -5/Waste -5/Factory History --------- Turn | Location | Event 7 | -11/Scrapyard | Discovered new exit (range 16) 68 | -11/Scrapyard | Entered Materials 74 | -10/Materials | Identified exit to Mines 138 | -10/Materials | Discovered new exit (range 4) 139 | -10/Materials | Entered another Materials area 139 | -9/Materials | Evolved 2 slots: Propulsion x2 329 | -9/Materials | Build established: Mutant 331 | -9/Materials | Discovered new exit (range 13) 338 | -9/Materials | Entered another Materials area 338 | -8/Materials | Evolved 2 slots: Utility x2 342 | -8/Materials | Lost 3 parts (1n2u) 441 | -8/Materials | Core integrity fell below 50% 481 | -8/Materials | Identified exit to Factory 490 | -8/Materials | Core integrity fell below 20% 499 | -8/Materials | Entered Factory 499 | -7/Factory | Evolved 2 slots: Weapon x2 505 | -7/Factory | Identified exit to DSF 520 | -7/Factory | Entered DSF 545 | -7/DSF | Additional patrols routed to DSF 585 | -7/DSF | Lost 4 parts (4w) 608 | -7/DSF | Discovered new exit (range 15) 624 | -7/DSF | Entered Factory 624 | -6/Factory | Evolved 2 slots: Propulsion x2 753 | -6/Factory | Discovered new exit (range 16) 861 | -6/Factory | Entered Extension 898 | -6/Extension | Build established: Tank 1058 | -6/Extension | Rescued a captive Derelict 1059 | -6/Extension | Rescued a captive Derelict 1256 | -6/Extension | Rescued a captive Derelict 1256 | -6/Extension | Rescued a captive Derelict 1454 | -6/Extension | Build established: Scavenger-Gunner 1559 | -6/Extension | Rescued a captive Derelict 1587 | -6/Extension | Rescued A7 1632 | -6/Extension | Spotted B-75 Beast 1644 | -6/Extension | Spotted B-75 Beast 1663 | -6/Extension | Allies destroyed B-75 Beast 1669 | -6/Extension | Lost 7 allies 1680 | -6/Extension | Allies destroyed B-75 Beast 1967 | -6/Extension | Discovered new exit (range 16) 1972 | -6/Extension | Discovered new exit (range 14) 2004 | -6/Extension | Identified exit to Factory 2017 | -6/Extension | Identified exit to Cetus 2177 | -6/Extension | Entered Cetus 2177 | -6/Cetus | Accompanied by 1 ally (A7) 2182 | -6/Cetus | Acquired a Cetus Manufacturing Module code from A7 2214 | -6/Cetus | Spotted Cetus Guard 2214 | -6/Cetus | Spotted Cetus Guard 2221 | -6/Cetus | Destroyed Cetus Guard 2222 | -6/Cetus | Spotted Cetus Guard 2225 | -6/Cetus | Allies destroyed Cetus Guard 2225 | -6/Cetus | Spotted Cetus Guard 2237 | -6/Cetus | Allies destroyed Cetus Guard 2242 | -6/Cetus | Allies destroyed Cetus Guard 2506 | -6/Cetus | Started Cetus Manufacturing Module 2531 | -6/Cetus | Manufactured an Enhanced Grunt 2556 | -6/Cetus | Manufactured an Enhanced Grunt 2581 | -6/Cetus | Manufactured an Enhanced Grunt 2591 | -6/Cetus | Escorted A7 to Cetus Mainframe 2606 | -6/Cetus | Manufactured an Enhanced Grunt 2631 | -6/Cetus | Manufactured an Enhanced Grunt 2843 | -6/Cetus | Discovered new exit (range 15) 2884 | -6/Cetus | Spotted Cetus Guard 2884 | -6/Cetus | Spotted Cetus Guard 2888 | -6/Cetus | Spotted Cetus Guard 2894 | -6/Cetus | Allies destroyed Cetus Guard 2895 | -6/Cetus | Spotted Cetus Guard 2898 | -6/Cetus | Allies destroyed Cetus Guard 2904 | -6/Cetus | Allies destroyed Cetus Guard 2906 | -6/Cetus | Allies destroyed A7 2910 | -6/Cetus | Allies destroyed Cetus Guard 2915 | -6/Cetus | Discovered exit to Factory (range 15) 2927 | -6/Cetus | Met Revision 17 3026 | -6/Cetus | System corruption reached 10% 3031 | -6/Cetus | Entered Archives 3031 | -6/Archives | Accompanied by 4 allies 3083 | -6/Archives | Lost 3 allies 3109 | -6/Archives | Unable to access archive contents 3114 | -6/Archives | Discovered new exit (range 15) 3125 | -6/Archives | Unable to access archive contents 3131 | -6/Archives | Discovered new exit (range 16) 3142 | -6/Archives | Unable to access archive contents 3149 | -6/Archives | Discovered exit to Factory (range 16) 3158 | -6/Archives | Unable to access archive contents 3348 | -6/Archives | Entered Hub_04(d) 3348 | -6/Hub_04(d) | Accompanied by 1 ally 3534 | -6/Hub_04(d) | Discovered exit to Factory (range 16) 3819 | -6/Hub_04(d) | Spotted B-75 Beast 3896 | -6/Hub_04(d) | Build established: Scavenger-Tank 3917 | -6/Hub_04(d) | Entered Factory 3917 | -5/Factory | Evolved 2 slots: Utility x2 4064 | -5/Factory | Sucked down chute 4064 | -5/Factory | Entered Waste 4065 | -5/Waste | Met a frightened Derelict 4079 | -5/Waste | EMP discharged 4088 | -5/Waste | Spotted C-40 Crusher 4090 | -5/Waste | Spotted C-40 Crusher 4101 | -5/Waste | Allies destroyed C-40 Crusher 4130 | -5/Waste | Spotted C-40 Crusher 4149 | -5/Waste | Crushed by Compactor (1 part destroyed, 1 dropped) 4150 | -5/Waste | Spotted C-40 Crusher 4152 | -5/Waste | Crushed by Compactor (1 part destroyed, 2 dropped) 4153 | -5/Waste | Crushed by Compactor (1 part destroyed, 2 dropped) 4155 | -5/Waste | Crushed by Compactor (1 part destroyed, 1 dropped) 4156 | -5/Waste | Crushed by Compactor (1 part destroyed, 1 dropped) 4158 | -5/Waste | Crushed by Compactor (1 part destroyed, 1 dropped) 4166 | -5/Waste | Spotted C-40 Crusher 4179 | -5/Waste | EMP discharged 4179 | -5/Waste | System corruption reached 10% 4188 | -5/Waste | Spotted C-40 Crusher 4189 | -5/Waste | Lost 7 parts (3n3u1w) 4222 | -5/Waste | Discovered new exit (range 10) 4236 | -5/Waste | Entered Factory 4464 | -5/Factory | Build established: Mutant 4549 | -5/Factory | Core integrity fell below 50% 4565 | -5/Factory | Core integrity fell below 20% 4581 | -5/Factory | Lost 12 parts (2p5n4u1w) 4607 | -5/Factory | Destroyed by P-70 Sage with Tesla Rifle Last Messages --------------- 04520_ Acquired 4 matter. 04522_ U-05 Engineer builds a Wall. 04526_ Acquired Imp. Signal Interpreter. 04536_ Critical hit (Burn: +37). 04538_ Antimatter Reactor destroyed. 04538_ Slammed into G-50 Soldier. 04539_ System corrupted: Energy discharge (-19). 04540_ Slammed into Y-64 Sentinel. 04541_ Penetrated by Slug. 04541_ Imp. Kinecellerator destroyed. 04545_ Xenon Bombardment Thruster destroyed. 04545_ Slug penetrates Power Conduit. 04545_ Dropped Centrium Heavy Treads. 04548_ Penetrated by Slug. 04550_ Xenon Bombardment Thruster destroyed. 04565_ System corrupted: Matter fused (-7). 04574_ Penetrated by Slug. 04574_ K-01 Serf cleans the Fusion Modulator. 04580_ System corrupted: Energy discharge (-27). 04604_ HACM VNQVBX#V:#L , >8OMACER&=KTQXF Map ----- +----------------------------------------------------+ | ?????????????????????????????????????????????????? | | ?????????????????????????????????????????????????? | | ?????????????????????????????????????????????????? | | ?????????????????????????????????????????????????? | | ?????????????????????????????????????????????????? | | ?????????????????????????????????????????????????? | | ?????????????????????????????????????????????????? | | ?????????????????????????????????????????????????? | | ?????????????????????????????????????????????????? | | ?????????????????????????????????????????????????? | | ?????????????????????????????????????????????????? | | ?????????????????????????? ??? ????????????????? | | ?????????????????????????] ?? ???????????????? | | ??????????????????????? ?? ????????????????? | | ??????????????????????? ??" ????????????????? | | ???????????????????????? ?F" #????????????????? | | ????????????????????????# " #????????????????? | | ????????????????????????# """ +????????????????? | | ????????????????????????# """ #????????????????? | | ????????????????????????# #????????????????? | | ????????????????????????? #????????????????? | | ??????????????????????????# #????????????????? | | ??????????????????????????# #????????????????? | | ??????????????????????????# ########?????????? | | ??????????????????#+####### ####??????? | | ??????????????????? + k @ k +??????? | | ?????????????????????###### p p #??????? | | ??????????????????????????##+###### p #??????? | | ?????????????????????????? ???# #??????? | | ????????????????????????# """ ?# #??????? | | ????????????????????????# "R # #??????? | | ????????????????????????# """ """ # ######## | | ????????????????????????# """ # | | ????????????????????????# """ # | | ????????????????????????# # | | ?????????????????????????! ??# | | ???????????????????????????#####??# | | ??????????????????????????????????# | | ??????????????????????????????????# | | ??????????????????????????????????# | | ??????????????????????????????????# | | ??????????????????????????????????# | | ??????????????????????????????????# | | ??????????????????????????????????###+###### | | ???????????????????????????????????????????# | | ???????????????????????????????????????????# | | ???????????????????????????????????????????# | | ???????????????????????????????????????????? | | ???????????????????????????????????????????????? | | ?????????????????????????????????????????????????? | +----------------------------------------------------+ Best States ------------- Heat Dissipation 59 Energy Generation 21 Energy Capacity 325 Matter Stores 300 Matter Capacity 300 Sight Range 16 Terrain Scan Range 16 Terrain Scan Density 10 Armor Coverage 225 Resistance: TH 20 Weapon Shielding 33 Evasion (%) 62 Targeting Accuracy 6 Armor Integrity Analysis 30 Recoil Reduction 6 Matter Filtering 30 Kinecelleration 40 Item Schematics ----------------- Magnetic Acceleration Cannon | -6/Factory | Scanalyzed Robot Schematics ------------------ None Fabricated ------------ Nothing Alien Tech Used ----------------- None Achievements -------------- Prison Break Project G-00 Revising The Future Challenges ------------ None Game ------ Seed ArmoredBombardmentSheargun Manual? 0 Play Time 00:59:55 Cumulative 51.0 hours Start 2024.04.05 @ 16:47:50 End 2024.04.05 @ 17:44:39 Sessions 1 Manual Loads 0 Difficulty Rogue Special Mode None Game No. 61 Rogue 61 Adventurer 0 Explorer 0 Win Type - Total 0 Types 0/0/0/0/0/0/0/0/0 Lore% 37 Gallery% 54 Achievement% 42 Wizard Run 0 Options --------- Layout 1 ASCII 0 Keyboard 0 Movement Numpad Keybinds 0 Fullscreen 1 Font 24/Smallcaps Map View 50x35 Zoom Use 0% Tactical HUD 1 Map Filters NONE Filters NONE Steam 1 RUN: 9815406a-993f-45c1-b15b-2fe3b1deb137